{"text_format":"3","workbook":"xlsx","n_sheets":1,"sheets":["Grafik roczny"],"not_rendered":{"defined_names":2},"read":"whole","date_system":"1900"}

{"sheet":"Grafik roczny","index":0,"n_rows":140,"n_cols":12,"rows_kept":140,"merged":[[0,1,1,11],[2,6,2,7],[2,8,2,9],[5,1,5,11],[39,1,39,11],[73,1,73,11],[107,1,107,11]]}
[null,"Karta godzin pracownika"]
[]
[null,"Imię i nazwisko pracownika:",null,"Adres e-mail:",null,null,"Sumy od początku roku:"]
[null,"Kierownik:",null,"Telefon:",null,null,"Zwykłe godziny pracy:",{"$f":"SUM(C16,C27,C38,C50,C61,C72,C84,C95,C106,C118,C129,C140)","v":0},"Nadgodziny:",{"$f":"SUM(F16,F27,F38,F50,F61,F72,F84,F95,F106,F118,F129,F140)","v":0},"Suma:",{"$f":"SUM(H4:J4)","v":0}]
[]
[null,"Styczeń, luty, marzec      Karta godzin pracownika: dzienna, tygodniowa, miesięczna, roczna"]
[null,"Styczeń","Tydzień 1","Nadgodziny","Tydzień 2","Nadgodziny ","Tydzień 3","Nadgodziny  ","Tydzień 4","Nadgodziny   ","Tydzień 5","Nadgodziny    "]
[null,"Poniedziałek"]
[null,"Wtorek"]
[null,"Środa"]
[null,"Czwartek"]
[null,"Piątek"]
[null,"Sobota"]
[null,"Niedziela"]
[null,"Suma godzin w tygodniu",{"$f":"SUBTOTAL(109,Styczeń[Tydzień 1])","v":0},{"$f":"SUBTOTAL(109,Styczeń[Nadgodziny])","v":0},{"$f":"SUBTOTAL(109,Styczeń[Tydzień 2])","v":0},{"$f":"SUBTOTAL(109,Styczeń[[Nadgodziny ]])","v":0},{"$f":"SUBTOTAL(109,Styczeń[Tydzień 3])","v":0},{"$f":"SUBTOTAL(109,Styczeń[[Nadgodziny  ]])","v":0},{"$f":"SUBTOTAL(109,Styczeń[Tydzień 4])","v":0},{"$f":"SUBTOTAL(109,Styczeń[[Nadgodziny   ]])","v":0},{"$f":"SUBTOTAL(109,Styczeń[Tydzień 5])","v":0},{"$f":"SUBTOTAL(109,Styczeń[[Nadgodziny    ]])","v":0}]
[null,"Suma w styczniu: Zwykłe godziny pracy",{"$f":"SUM(Styczeń[[#Totals],[Tydzień 1]],Styczeń[[#Totals],[Tydzień 2]],Styczeń[[#Totals],[Tydzień 3]],Styczeń[[#Totals],[Tydzień 4]],Styczeń[[#Totals],[Tydzień 5]])","v":0},"Suma w styczniu: Nadgodziny",null,{"$f":"SUM(Styczeń[[#Totals],[Nadgodziny]],Styczeń[[#Totals],[Nadgodziny ]],Styczeń[[#Totals],[Nadgodziny  ]],Styczeń[[#Totals],[Nadgodziny   ]],Styczeń[[#Totals],[Nadgodziny    ]])","v":0}]
[]
[null,"Luty","Tydzień 1","Nadgodziny","Tydzień 2","Nadgodziny ","Tydzień 3","Nadgodziny  ","Tydzień 4","Nadgodziny   ","Tydzień 5","Nadgodziny    "]
[null,"Poniedziałek"]
[null,"Wtorek"]
[null,"Środa"]
[null,"Czwartek"]
[null,"Piątek"]
[null,"Sobota"]
[null,"Niedziela"]
[null,"Suma godzin w tygodniu",{"$f":"SUBTOTAL(109,Luty[Tydzień 1])","v":0},{"$f":"SUBTOTAL(109,Luty[Nadgodziny])","v":0},{"$f":"SUBTOTAL(109,Luty[Tydzień 2])","v":0},{"$f":"SUBTOTAL(109,Luty[[Nadgodziny ]])","v":0},{"$f":"SUBTOTAL(109,Luty[Tydzień 3])","v":0},{"$f":"SUBTOTAL(109,Luty[[Nadgodziny  ]])","v":0},{"$f":"SUBTOTAL(109,Luty[Tydzień 4])","v":0},{"$f":"SUBTOTAL(109,Luty[[Nadgodziny   ]])","v":0},{"$f":"SUBTOTAL(109,Luty[Tydzień 5])","v":0},{"$f":"SUBTOTAL(109,Luty[[Nadgodziny    ]])","v":0}]
[null,"Suma w lutym: Zwykłe godziny pracy",{"$f":"SUM(Luty[[#Totals],[Tydzień 1]],Luty[[#Totals],[Tydzień 2]],Luty[[#Totals],[Tydzień 3]],Luty[[#Totals],[Tydzień 4]],Luty[[#Totals],[Tydzień 5]])","v":0},"Suma w lutym: Nadgodziny",null,{"$f":"SUM(Luty[[#Totals],[Nadgodziny]],Luty[[#Totals],[Nadgodziny ]],Luty[[#Totals],[Nadgodziny  ]],Luty[[#Totals],[Nadgodziny   ]],Luty[[#Totals],[Nadgodziny    ]])","v":0}]
[]
[null,"Marzec","Tydzień 1","Nadgodziny","Tydzień 2","Nadgodziny ","Tydzień 3","Nadgodziny  ","Tydzień 4","Nadgodziny   ","Tydzień 5","Nadgodziny    "]
[null,"Poniedziałek"]
[null,"Wtorek"]
[null,"Środa"]
[null,"Czwartek"]
[null,"Piątek"]
[null,"Sobota"]
[null,"Niedziela"]
[null,"Suma godzin w tygodniu",{"$f":"SUBTOTAL(109,Marzec[Tydzień 1])","v":0},{"$f":"SUBTOTAL(109,Marzec[Nadgodziny])","v":0},{"$f":"SUBTOTAL(109,Marzec[Tydzień 2])","v":0},{"$f":"SUBTOTAL(109,Marzec[[Nadgodziny ]])","v":0},{"$f":"SUBTOTAL(109,Marzec[Tydzień 3])","v":0},{"$f":"SUBTOTAL(109,Marzec[[Nadgodziny  ]])","v":0},{"$f":"SUBTOTAL(109,Marzec[Tydzień 4])","v":0},{"$f":"SUBTOTAL(109,Marzec[[Nadgodziny   ]])","v":0},{"$f":"SUBTOTAL(109,Marzec[Tydzień 5])","v":0},{"$f":"SUBTOTAL(109,Marzec[[Nadgodziny    ]])","v":0}]
[null,"Suma w marcu: Zwykłe godziny pracy",{"$f":"SUM(Marzec[[#Totals],[Tydzień 1]],Marzec[[#Totals],[Tydzień 2]],Marzec[[#Totals],[Tydzień 3]],Marzec[[#Totals],[Tydzień 4]],Marzec[[#Totals],[Tydzień 5]])","v":0},"Suma w marcu: Nadgodziny",null,{"$f":"SUM(Marzec[[#Totals],[Nadgodziny]],Marzec[[#Totals],[Nadgodziny ]],Marzec[[#Totals],[Nadgodziny  ]],Marzec[[#Totals],[Nadgodziny   ]],Marzec[[#Totals],[Nadgodziny    ]])","v":0}]
[]
[null,"Kwiecień, maj, czerwiec      Karta godzin pracownika: dzienna, tygodniowa, miesięczna, roczna"]
[null,"Kwiecień","Tydzień 1","Nadgodziny","Tydzień 2","Nadgodziny ","Tydzień 3","Nadgodziny  ","Tydzień 4","Nadgodziny   ","Tydzień 5","Nadgodziny    "]
[null,"Poniedziałek"]
[null,"Wtorek"]
[null,"Środa"]
[null,"Czwartek"]
[null,"Piątek"]
[null,"Sobota"]
[null,"Niedziela"]
[null,"Suma godzin w tygodniu",{"$f":"SUBTOTAL(109,Kwiecień[Tydzień 1])","v":0},{"$f":"SUBTOTAL(109,Kwiecień[Nadgodziny])","v":0},{"$f":"SUBTOTAL(109,Kwiecień[Tydzień 2])","v":0},{"$f":"SUBTOTAL(109,Kwiecień[[Nadgodziny ]])","v":0},{"$f":"SUBTOTAL(109,Kwiecień[Tydzień 3])","v":0},{"$f":"SUBTOTAL(109,Kwiecień[[Nadgodziny  ]])","v":0},{"$f":"SUBTOTAL(109,Kwiecień[Tydzień 4])","v":0},{"$f":"SUBTOTAL(109,Kwiecień[[Nadgodziny   ]])","v":0},{"$f":"SUBTOTAL(109,Kwiecień[Tydzień 5])","v":0},{"$f":"SUBTOTAL(109,Kwiecień[[Nadgodziny    ]])","v":0}]
[null,"Suma w kwietniu: Zwykłe godziny pracy",{"$f":"SUM(Kwiecień[[#Totals],[Tydzień 1]],Kwiecień[[#Totals],[Tydzień 2]],Kwiecień[[#Totals],[Tydzień 3]],Kwiecień[[#Totals],[Tydzień 4]],Kwiecień[[#Totals],[Tydzień 5]])","v":0},"Suma w kwietniu: Nadgodziny",null,{"$f":"SUM(Kwiecień[[#Totals],[Nadgodziny]],Kwiecień[[#Totals],[Nadgodziny ]],Kwiecień[[#Totals],[Nadgodziny  ]],Kwiecień[[#Totals],[Nadgodziny   ]],Kwiecień[[#Totals],[Nadgodziny    ]])","v":0}]
[]
[null,"Maj","Tydzień 1","Nadgodziny","Tydzień 2","Nadgodziny ","Tydzień 3","Nadgodziny  ","Tydzień 4","Nadgodziny   ","Tydzień 5","Nadgodziny    "]
[null,"Poniedziałek"]
[null,"Wtorek"]
[null,"Środa"]
[null,"Czwartek"]
[null,"Piątek"]
[null,"Sobota"]
[null,"Niedziela"]
[null,"Suma godzin w tygodniu",{"$f":"SUBTOTAL(109,Maj[Tydzień 1])","v":0},{"$f":"SUBTOTAL(109,Maj[Nadgodziny])","v":0},{"$f":"SUBTOTAL(109,Maj[Tydzień 2])","v":0},{"$f":"SUBTOTAL(109,Maj[[Nadgodziny ]])","v":0},{"$f":"SUBTOTAL(109,Maj[Tydzień 3])","v":0},{"$f":"SUBTOTAL(109,Maj[[Nadgodziny  ]])","v":0},{"$f":"SUBTOTAL(109,Maj[Tydzień 4])","v":0},{"$f":"SUBTOTAL(109,Maj[[Nadgodziny   ]])","v":0},{"$f":"SUBTOTAL(109,Maj[Tydzień 5])","v":0},{"$f":"SUBTOTAL(109,Maj[[Nadgodziny    ]])","v":0}]
[null,"Suma w maju: Zwykłe godziny pracy",{"$f":"SUM(Maj[[#Totals],[Tydzień 1]],Maj[[#Totals],[Tydzień 2]],Maj[[#Totals],[Tydzień 3]],Maj[[#Totals],[Tydzień 4]],Maj[[#Totals],[Tydzień 5]])","v":0},"Suma w maju: Nadgodziny",null,{"$f":"SUM(Maj[[#Totals],[Nadgodziny]],Maj[[#Totals],[Nadgodziny ]],Maj[[#Totals],[Nadgodziny  ]],Maj[[#Totals],[Nadgodziny   ]],Maj[[#Totals],[Nadgodziny    ]])","v":0}]
[]
[null,"Czerwiec","Tydzień 1","Nadgodziny","Tydzień 2","Nadgodziny ","Tydzień 3","Nadgodziny  ","Tydzień 4","Nadgodziny   ","Tydzień 5","Nadgodziny    "]
[null,"Poniedziałek"]
[null,"Wtorek"]
[null,"Środa"]
[null,"Czwartek"]
[null,"Piątek"]
[null,"Sobota"]
[null,"Niedziela"]
[null,"Suma godzin w tygodniu",{"$f":"SUBTOTAL(109,Czerwiec[Tydzień 1])","v":0},{"$f":"SUBTOTAL(109,Czerwiec[Nadgodziny])","v":0},{"$f":"SUBTOTAL(109,Czerwiec[Tydzień 2])","v":0},{"$f":"SUBTOTAL(109,Czerwiec[[Nadgodziny ]])","v":0},{"$f":"SUBTOTAL(109,Czerwiec[Tydzień 3])","v":0},{"$f":"SUBTOTAL(109,Czerwiec[[Nadgodziny  ]])","v":0},{"$f":"SUBTOTAL(109,Czerwiec[Tydzień 4])","v":0},{"$f":"SUBTOTAL(109,Czerwiec[[Nadgodziny   ]])","v":0},{"$f":"SUBTOTAL(109,Czerwiec[Tydzień 5])","v":0},{"$f":"SUBTOTAL(109,Czerwiec[[Nadgodziny    ]])","v":0}]
[null,"Suma w czerwcu: Zwykłe godziny pracy",{"$f":"SUM(Czerwiec[[#Totals],[Tydzień 1]],Czerwiec[[#Totals],[Tydzień 2]],Czerwiec[[#Totals],[Tydzień 3]],Czerwiec[[#Totals],[Tydzień 4]],Czerwiec[[#Totals],[Tydzień 5]])","v":0},"Suma w czerwcu: Nadgodziny",null,{"$f":"SUM(Czerwiec[[#Totals],[Nadgodziny]],Czerwiec[[#Totals],[Nadgodziny ]],Czerwiec[[#Totals],[Nadgodziny  ]],Czerwiec[[#Totals],[Nadgodziny   ]],Czerwiec[[#Totals],[Nadgodziny    ]])","v":0}]
[]
[null,"Lipiec, sierpień, wrzesień     Karta godzin pracownika: dzienna, tygodniowa, miesięczna, roczna"]
[null,"Lipiec","Tydzień 1","Nadgodziny","Tydzień 2","Nadgodziny ","Tydzień 3","Nadgodziny  ","Tydzień 4","Nadgodziny   ","Tydzień 5","Nadgodziny    "]
[null,"Poniedziałek"]
[null,"Wtorek"]
[null,"Środa"]
[null,"Czwartek"]
[null,"Piątek"]
[null,"Sobota"]
[null,"Niedziela"]
[null,"Suma godzin w tygodniu",{"$f":"SUBTOTAL(109,Lipiec[Tydzień 1])","v":0},{"$f":"SUBTOTAL(109,Lipiec[Nadgodziny])","v":0},{"$f":"SUBTOTAL(109,Lipiec[Tydzień 2])","v":0},{"$f":"SUBTOTAL(109,Lipiec[[Nadgodziny ]])","v":0},{"$f":"SUBTOTAL(109,Lipiec[Tydzień 3])","v":0},{"$f":"SUBTOTAL(109,Lipiec[[Nadgodziny  ]])","v":0},{"$f":"SUBTOTAL(109,Lipiec[Tydzień 4])","v":0},{"$f":"SUBTOTAL(109,Lipiec[[Nadgodziny   ]])","v":0},{"$f":"SUBTOTAL(109,Lipiec[Tydzień 5])","v":0},{"$f":"SUBTOTAL(109,Lipiec[[Nadgodziny    ]])","v":0}]
[null,"Suma w lipcu: Zwykłe godziny pracy",{"$f":"SUM(Lipiec[[#Totals],[Tydzień 1]],Lipiec[[#Totals],[Tydzień 2]],Lipiec[[#Totals],[Tydzień 3]],Lipiec[[#Totals],[Tydzień 4]],Lipiec[[#Totals],[Tydzień 5]])","v":0},"Suma w lipcu: Nadgodziny",null,{"$f":"SUM(Lipiec[[#Totals],[Nadgodziny]],Lipiec[[#Totals],[Nadgodziny ]],Lipiec[[#Totals],[Nadgodziny  ]],Lipiec[[#Totals],[Nadgodziny   ]],Lipiec[[#Totals],[Nadgodziny    ]])","v":0}]
[]
[null,"Sierpień","Tydzień 1","Nadgodziny","Tydzień 2","Nadgodziny ","Tydzień 3","Nadgodziny  ","Tydzień 4","Nadgodziny   ","Tydzień 5","Nadgodziny    "]
[null,"Poniedziałek"]
[null,"Wtorek"]
[null,"Środa"]
[null,"Czwartek"]
[null,"Piątek"]
[null,"Sobota"]
[null,"Niedziela"]
[null,"Suma godzin w tygodniu",{"$f":"SUBTOTAL(109,Sierpień[Tydzień 1])","v":0},{"$f":"SUBTOTAL(109,Sierpień[Nadgodziny])","v":0},{"$f":"SUBTOTAL(109,Sierpień[Tydzień 2])","v":0},{"$f":"SUBTOTAL(109,Sierpień[[Nadgodziny ]])","v":0},{"$f":"SUBTOTAL(109,Sierpień[Tydzień 3])","v":0},{"$f":"SUBTOTAL(109,Sierpień[[Nadgodziny  ]])","v":0},{"$f":"SUBTOTAL(109,Sierpień[Tydzień 4])","v":0},{"$f":"SUBTOTAL(109,Sierpień[[Nadgodziny   ]])","v":0},{"$f":"SUBTOTAL(109,Sierpień[Tydzień 5])","v":0},{"$f":"SUBTOTAL(109,Sierpień[[Nadgodziny    ]])","v":0}]
[null,"Suma w sierpniu: Zwykłe godziny pracy",{"$f":"SUM(Sierpień[[#Totals],[Tydzień 1]],Sierpień[[#Totals],[Tydzień 2]],Sierpień[[#Totals],[Tydzień 3]],Sierpień[[#Totals],[Tydzień 4]],Sierpień[[#Totals],[Tydzień 5]])","v":0},"Suma w sierpniu: Nadgodziny",null,{"$f":"SUM(Sierpień[[#Totals],[Nadgodziny]],Sierpień[[#Totals],[Nadgodziny ]],Sierpień[[#Totals],[Nadgodziny  ]],Sierpień[[#Totals],[Nadgodziny   ]],Sierpień[[#Totals],[Nadgodziny    ]])","v":0}]
[]
[null,"Wrzesień","Tydzień 1","Nadgodziny","Tydzień 2","Nadgodziny ","Tydzień 3","Nadgodziny  ","Tydzień 4","Nadgodziny   ","Tydzień 5","Nadgodziny    "]
[null,"Poniedziałek"]
[null,"Wtorek"]
[null,"Środa"]
[null,"Czwartek"]
[null,"Piątek"]
[null,"Sobota"]
[null,"Niedziela"]
[null,"Suma godzin w tygodniu",{"$f":"SUBTOTAL(109,Wrzesień[Tydzień 1])","v":0},{"$f":"SUBTOTAL(109,Wrzesień[Nadgodziny])","v":0},{"$f":"SUBTOTAL(109,Wrzesień[Tydzień 2])","v":0},{"$f":"SUBTOTAL(109,Wrzesień[[Nadgodziny ]])","v":0},{"$f":"SUBTOTAL(109,Wrzesień[Tydzień 3])","v":0},{"$f":"SUBTOTAL(109,Wrzesień[[Nadgodziny  ]])","v":0},{"$f":"SUBTOTAL(109,Wrzesień[Tydzień 4])","v":0},{"$f":"SUBTOTAL(109,Wrzesień[[Nadgodziny   ]])","v":0},{"$f":"SUBTOTAL(109,Wrzesień[Tydzień 5])","v":0},{"$f":"SUBTOTAL(109,Wrzesień[[Nadgodziny    ]])","v":0}]
[null,"Suma we wrześniu: Zwykłe godziny pracy",{"$f":"SUM(Wrzesień[[#Totals],[Tydzień 1]],Wrzesień[[#Totals],[Tydzień 2]],Wrzesień[[#Totals],[Tydzień 3]],Wrzesień[[#Totals],[Tydzień 4]],Wrzesień[[#Totals],[Tydzień 5]])","v":0},"Suma we wrześniu: Nadgodziny",null,{"$f":"SUM(Wrzesień[[#Totals],[Nadgodziny]],Wrzesień[[#Totals],[Nadgodziny ]],Wrzesień[[#Totals],[Nadgodziny  ]],Wrzesień[[#Totals],[Nadgodziny   ]],Wrzesień[[#Totals],[Nadgodziny    ]])","v":0}]
[]
[null,"Październik, listopad, grudzień      Karta godzin pracownika: dzienna, tygodniowa, miesięczna, roczna"]
[null,"Październik","Tydzień 1","Nadgodziny","Tydzień 2","Nadgodziny ","Tydzień 3","Nadgodziny  ","Tydzień 4","Nadgodziny   ","Tydzień 5","Nadgodziny    "]
[null,"Poniedziałek"]
[null,"Wtorek"]
[null,"Środa"]
[null,"Czwartek"]
[null,"Piątek"]
[null,"Sobota"]
[null,"Niedziela"]
[null,"Suma godzin w tygodniu",{"$f":"SUBTOTAL(109,Październik[Tydzień 1])","v":0},{"$f":"SUBTOTAL(109,Październik[Nadgodziny])","v":0},{"$f":"SUBTOTAL(109,Październik[Tydzień 2])","v":0},{"$f":"SUBTOTAL(109,Październik[[Nadgodziny ]])","v":0},{"$f":"SUBTOTAL(109,Październik[Tydzień 3])","v":0},{"$f":"SUBTOTAL(109,Październik[[Nadgodziny  ]])","v":0},{"$f":"SUBTOTAL(109,Październik[Tydzień 4])","v":0},{"$f":"SUBTOTAL(109,Październik[[Nadgodziny   ]])","v":0},{"$f":"SUBTOTAL(109,Październik[Tydzień 5])","v":0},{"$f":"SUBTOTAL(109,Październik[[Nadgodziny    ]])","v":0}]
[null,"Suma w październiku: Zwykłe godziny pracy",{"$f":"SUM(Październik[[#Totals],[Tydzień 1]],Październik[[#Totals],[Tydzień 2]],Październik[[#Totals],[Tydzień 3]],Październik[[#Totals],[Tydzień 4]],Październik[[#Totals],[Tydzień 5]])","v":0},"Suma w październiku: Nadgodziny",null,{"$f":"SUM(Październik[[#Totals],[Nadgodziny]],Październik[[#Totals],[Nadgodziny ]],Październik[[#Totals],[Nadgodziny  ]],Październik[[#Totals],[Nadgodziny   ]],Październik[[#Totals],[Nadgodziny    ]])","v":0}]
[]
[null,"Listopad","Tydzień 1","Nadgodziny","Tydzień 2","Nadgodziny ","Tydzień 3","Nadgodziny  ","Tydzień 4","Nadgodziny   ","Tydzień 5","Nadgodziny    "]
[null,"Poniedziałek"]
[null,"Wtorek"]
[null,"Środa"]
[null,"Czwartek"]
[null,"Piątek"]
[null,"Sobota"]
[null,"Niedziela"]
[null,"Suma godzin w tygodniu",{"$f":"SUBTOTAL(109,Listopad[Tydzień 1])","v":0},{"$f":"SUBTOTAL(109,Listopad[Nadgodziny])","v":0},{"$f":"SUBTOTAL(109,Listopad[Tydzień 2])","v":0},{"$f":"SUBTOTAL(109,Listopad[[Nadgodziny ]])","v":0},{"$f":"SUBTOTAL(109,Listopad[Tydzień 3])","v":0},{"$f":"SUBTOTAL(109,Listopad[[Nadgodziny  ]])","v":0},{"$f":"SUBTOTAL(109,Listopad[Tydzień 4])","v":0},{"$f":"SUBTOTAL(109,Listopad[[Nadgodziny   ]])","v":0},{"$f":"SUBTOTAL(109,Listopad[Tydzień 5])","v":0},{"$f":"SUBTOTAL(109,Listopad[[Nadgodziny    ]])","v":0}]
[null,"Suma w listopadzie: Zwykłe godziny pracy",{"$f":"SUM(Listopad[[#Totals],[Tydzień 1]],Listopad[[#Totals],[Tydzień 2]],Listopad[[#Totals],[Tydzień 3]],Listopad[[#Totals],[Tydzień 4]],Listopad[[#Totals],[Tydzień 5]])","v":0},"Suma w listopadzie: Nadgodziny",null,{"$f":"SUM(Listopad[[#Totals],[Nadgodziny]],Listopad[[#Totals],[Nadgodziny ]],Listopad[[#Totals],[Nadgodziny  ]],Listopad[[#Totals],[Nadgodziny   ]],Listopad[[#Totals],[Nadgodziny    ]])","v":0}]
[]
[null,"Grudzień","Tydzień 1","Nadgodziny","Tydzień 2","Nadgodziny ","Tydzień 3","Nadgodziny  ","Tydzień 4","Nadgodziny   ","Tydzień 5","Nadgodziny    "]
[null,"Poniedziałek"]
[null,"Wtorek"]
[null,"Środa"]
[null,"Czwartek"]
[null,"Piątek"]
[null,"Sobota"]
[null,"Niedziela"]
[null,"Suma godzin w tygodniu",{"$f":"SUBTOTAL(109,Grudzień[Tydzień 1])","v":0},{"$f":"SUBTOTAL(109,Grudzień[Nadgodziny])","v":0},{"$f":"SUBTOTAL(105,Grudzień[Tydzień 2])","v":0},{"$f":"SUBTOTAL(109,Grudzień[[Nadgodziny ]])","v":0},{"$f":"SUBTOTAL(109,Grudzień[Tydzień 3])","v":0},{"$f":"SUBTOTAL(109,Grudzień[[Nadgodziny  ]])","v":0},{"$f":"SUBTOTAL(109,Grudzień[Tydzień 4])","v":0},{"$f":"SUBTOTAL(109,Grudzień[[Nadgodziny   ]])","v":0},{"$f":"SUBTOTAL(109,Grudzień[Tydzień 5])","v":0},{"$f":"SUBTOTAL(109,Grudzień[[Nadgodziny    ]])","v":0}]
[null,"Suma w grudniu: Zwykłe godziny pracy",{"$f":"SUM(Grudzień[[#Totals],[Tydzień 1]],Grudzień[[#Totals],[Tydzień 2]],Grudzień[[#Totals],[Tydzień 3]],Grudzień[[#Totals],[Tydzień 4]],Grudzień[[#Totals],[Tydzień 5]])","v":0},"Suma w grudniu: Nadgodziny",null,{"$f":"SUM(Grudzień[[#Totals],[Nadgodziny]],Grudzień[[#Totals],[Nadgodziny ]],Grudzień[[#Totals],[Nadgodziny  ]],Grudzień[[#Totals],[Nadgodziny   ]],Grudzień[[#Totals],[Nadgodziny    ]])","v":0}]